bitfinex/quotes_BTCUSD_20251015
["timestamp","ask_amount","ask_price","bid_price","bid_amount"]
[1760536311273,0.34,111410.0,111400.0,0.38854282]
[1760536311488,0.34,111410.0,111400.0,0.20897012]
[1760536311711,0.51951709,111410.0,111400.0,0.08969012]
[1760536311926,0.51951709,111410.0,111400.0,0.09647191]
[1760536312142,0.34,111410.0,111400.0,0.39524512]
[1760536312361,0.34,111410.0,111400.0,0.38946333]
[1760536312804,0.52861835,111430.0,111410.0,0.17951639]
[1760536313051,0.17963528,111430.0,111410.0,0.38839351]
[1760536313268,0.00015021,111430.0,111420.0,0.73009763]
[1760536313485,0.00015021,111430.0,111420.0,0.30537338]
[1760536313713,0.00015021,111430.0,111420.0,0.42461338]
[1760536314168,0.00015021,111430.0,111420.0,0.3883911]
[1760536314409,0.00015021,111430.0,111420.0,0.2691911]
[1760536314626,0.00015021,111430.0,111420.0,0.3883911]
[1760536315072,0.00015021,111430.0,111420.0,0.3903511]
[1760536315288,0.00015021,111430.0,111420.0,0.2691911]
[1760536315506,0.00015021,111430.0,111420.0,0.3883511]
[1760536315749,0.00015021,111430.0,111420.0,0.3893511]
[1760536315971,0.00015021,111430.0,111420.0,0.42549338]
[1760536316185,0.34,111460.0,111440.0,0.17946877]
[1760536316404,0.34,111460.0,111450.0,0.39467389]
[1760536316405,0.51943656,111460.0,111450.0,0.39467389]
[1760536316614,0.51943656,111460.0,111450.0,0.20885012]
[1760536316864,0.51943656,111460.0,111450.0,0.20881012]
[1760536317086,0.34,111460.0,111450.0,0.26914278]
[1760536317303,0.66234688,111470.0,111450.0,0.38822248]
[1760536317517,0.17943656,111460.0,111450.0,0.08969012]
[1760536317727,0.17943656,111460.0,111450.0,0.21463057]
[1760536317939,0.17943656,111460.0,111450.0,0.08969012]
[1760536318181,0.66249701,111470.0,111450.0,0.39408845]
[1760536318397,0.82307654,111470.0,111460.0,0.29847656]
[1760536318615,0.48307654,111470.0,111460.0,0.26912668]
[1760536318832,0.17943656,111460.0,111450.0,0.001]
[1760536319065,0.17943656,111460.0,111440.0,0.119]
[1760536319066,0.17946698,111450.0,111440.0,0.11904]
[1760536319292,0.52840838,111460.0,111440.0,0.11904]
[1760536319534,0.52840838,111460.0,111450.0,0.001]
[1760536319772,0.52840838,111460.0,111450.0,0.12]
[1760536319987,0.52840838,111460.0,111450.0,0.20969012]
[1760536320412,0.18840838,111460.0,111450.0,0.09069012]
[1760536320627,0.52840838,111460.0,111450.0,0.119]
[1760536321104,0.52840838,111460.0,111450.0,0.11996]
[1760536321105,0.51943656,111460.0,111450.0,0.11996]
[1760536321321,0.34,111460.0,111450.0,0.0963968]
[1760536321532,0.51943656,111460.0,111450.0,0.001]
[1760536321956,0.52002173,111460.0,111450.0,0.001]
[1760536322164,0.52439122,111460.0,111450.0,0.00592221]
[1760536322384,0.52439122,111460.0,111450.0,0.001]
[1760536322608,0.52439122,111460.0,111450.0,0.09573626]
[1760536322816,0.52439122,111460.0,111450.0,0.21461626]
[1760536323041,0.52439122,111460.0,111450.0,0.001]
[1760536323265,0.52439122,111460.0,111450.0,0.11988]
[1760536323523,0.52439122,111460.0,111450.0,0.001]
[1760536323753,0.52439122,111460.0,111450.0,1e-08]
[1760536323754,5.588897,111460.0,111450.0,1e-08]
[1760536324891,5.59246913,111460.0,111450.0,1e-08]
[1760536325127,0.51950098,111420.0,111410.0,0.0717521]
[1760536325344,0.48711849,111420.0,111410.0,0.0717521]
[1760536325563,0.17953321,111400.0,111390.0,0.0717521]
[1760536325791,0.30761751,111420.0,111400.0,0.17953321]
[1760536326048,0.30761751,111420.0,111410.0,0.2756582]
[1760536326276,0.179469,111440.0,111430.0,0.17948487]
[1760536326491,0.17948504,111430.0,111420.0,0.17950098]
[1760536326705,0.17946877,111440.0,111430.0,0.17948487]
[1760536326917,0.18846257,111450.0,111430.0,0.26917499]
[1760536327134,0.18846257,111450.0,111440.0,0.21321606]
[1760536327357,0.52846257,111450.0,111440.0,0.20849012]
[1760536327596,0.52846257,111450.0,111440.0,0.08969012]
[1760536328298,0.52846257,111450.0,111440.0,0.20845012]
[1760536328529,0.52846257,111450.0,111440.0,0.001]
[1760536330135,5.52846257,111450.0,111440.0,0.001]
[1760536330355,5.52846257,111450.0,111410.0,0.07225323]
[1760536330356,0.51950098,111420.0,111410.0,0.07225323]
[1760536330796,0.51950098,111420.0,111410.0,0.00050113]
[1760536331016,5.51950098,111420.0,111410.0,0.00050113]
[1760536331244,5.56568326,111420.0,111410.0,0.00050113]
[1760536331492,5.56568326,111420.0,111410.0,0.00150113]
[1760536331926,5.56568326,111420.0,111410.0,0.00050113]
[1760536332140,5.56568326,111420.0,111410.0,1e-08]
[1760536333052,0.56568326,111420.0,111410.0,1e-08]
[1760536333266,0.51950098,111420.0,111410.0,1e-08]
[1760536333914,0.51950098,111420.0,111410.0,0.08969013]
[1760536333915,0.34,111420.0,111410.0,0.08969013]
[1760536334132,0.17948834,111430.0,111410.0,0.26920657]
[1760536334350,0.17948834,111430.0,111420.0,0.00699863]
[1760536334778,0.51948834,111430.0,111420.0,0.00699863]
[1760536334994,0.18846948,111440.0,111420.0,0.27618973]
[1760536335208,0.18778902,111440.0,111420.0,0.3878311]
[1760536335443,0.17948487,111430.0,111420.0,0.08969012]
[1760536335663,0.17948487,111430.0,111420.0,0.09725805]
[1760536336790,0.51947091,111440.0,111420.0,0.39539903]
[1760536337005,0.51947091,111440.0,111430.0,0.20833012]
[1760536337232,0.51947091,111440.0,111430.0,0.08969012]
[1760536337880,0.51947091,111440.0,111430.0,0.20833012]
[1760536338089,0.51947091,111440.0,111430.0,0.08969012]
[1760536338746,0.17950098,111420.0,111410.0,0.1795171]
[1760536338953,0.17950098,111420.0,111410.0,0.26920722]
[1760536339242,0.17948487,111430.0,111410.0,0.26920722]
[1760536339474,0.17950098,111420.0,111410.0,0.08969013]
[1760536340353,0.51950098,111420.0,111410.0,0.08969013]
[1760536341027,0.51950098,111420.0,111410.0,0.09069013]
[1760536341249,0.51950098,111420.0,111410.0,1e-08]
[1760536341696,0.17948487,111430.0,111410.0,1e-08]
[1760536341918,0.18970421,111420.0,111410.0,1e-08]
[1760536342132,0.17950098,111420.0,111410.0,1e-08]
[1760536342349,5.72568326,111420.0,111410.0,1e-08]
[1760536342579,5.22925165,111420.0,111410.0,1e-08]
[1760536342809,5.25762989,111420.0,111410.0,1e-08]
[1760536343047,5.26595276,111420.0,111410.0,1e-08]
[1760536343278,5.28258316,111420.0,111410.0,1e-08]
[1760536343729,5.62324138,111420.0,111410.0,1e-08]
[1760536344449,5.62424138,111420.0,111410.0,1e-08]
[1760536344681,5.61094288,111420.0,111410.0,1e-08]
[1760536345129,5.59431248,111420.0,111410.0,1e-08]
[1760536345979,5.59431248,111420.0,111350.0,0.0717521]
[1760536345980,0.1795977,111360.0,111350.0,0.0717521]
[1760536346186,0.1795977,111360.0,111350.0,0.07190231]
[1760536346392,0.1795977,111360.0,111350.0,0.00015021]
[1760536347443,0.1795977,111360.0,111350.0,0.00115021]
[1760536348347,0.1795977,111360.0,111350.0,0.00015021]
[1760536348564,0.5195977,111360.0,111350.0,0.00015021]
[1760536350240,0.5195977,111360.0,111350.0,0.17976404]
[1760536350463,0.34,111360.0,111350.0,0.17976404]
[1760536350683,0.17959537,111370.0,111350.0,0.26945416]
[1760536350916,0.1795977,111360.0,111350.0,0.26945416]
[1760536351134,0.1795977,111360.0,111350.0,0.20848033]
[1760536351353,0.1795977,111360.0,111350.0,0.08984033]
[1760536351771,0.1795977,111360.0,111350.0,0.09259817]
[1760536352014,0.1795977,111360.0,111350.0,0.271212]
[1760536352672,0.1795977,111360.0,111350.0,0.389852]
[1760536353200,0.18857033,111380.0,111360.0,0.1795977]
[1760536353411,0.34,111370.0,111360.0,0.26928782]
[1760536353640,0.18857033,111380.0,111360.0,0.26928782]
[1760536353874,0.0717521,111390.0,111370.0,0.26927169]
[1760536354094,0.0717521,111390.0,111380.0,0.17956545]
[1760536354321,0.17954933,111390.0,111380.0,0.26925557]
[1760536354589,0.2693623,111400.0,111380.0,0.26925557]
[1760536354590,0.6093623,111400.0,111380.0,0.26925557]
[1760536354827,0.17954933,111390.0,111380.0,0.38789557]
[1760536355272,0.17953321,111400.0,111390.0,0.17954933]
[1760536355512,0.17953941,111400.0,111390.0,0.08969012]
[1760536355755,0.17953321,111400.0,111390.0,0.28129526]
[1760536355987,0.17953321,111400.0,111390.0,0.38787945]
[1760536356431,0.17953321,111400.0,111390.0,0.26938966]
[1760536356858,0.59129952,111420.0,111400.0,0.17953321]
[1760536357079,0.17951709,111410.0,111400.0,0.38786295]
[1760536357299,0.17951709,111410.0,111400.0,0.26922295]
[1760536357513,0.51954742,111420.0,111400.0,0.38786295]
[1760536357735,0.17950098,111420.0,111410.0,0.20833012]
[1760536358164,0.51950098,111420.0,111410.0,0.08969012]
[1760536358391,0.51950098,111420.0,111410.0,0.20833012]
[1760536359063,0.51950098,111420.0,111410.0,0.08969012]
[1760536359283,0.51950098,111420.0,111410.0,0.21827905]
[1760536359507,0.17948487,111430.0,111410.0,0.38784721]
[1760536359767,0.17950098,111420.0,111410.0,0.08969012]
[1760536360208,0.17950098,111420.0,111410.0,0.09069012]
[1760536360437,0.17950098,111420.0,111410.0,0.2182945]
[1760536360654,0.17950098,111420.0,111410.0,0.20833012]
[1760536360865,0.17950098,111420.0,111410.0,0.08969012]
[1760536361078,0.17951709,111410.0,111400.0,0.0096097]
[1760536361303,0.17953321,111400.0,111390.0,0.00015021]
[1760536361972,0.51953321,111400.0,111390.0,0.00015021]
[1760536363760,0.17958866,111370.0,111350.0,0.17958456]
[1760536363984,0.17958866,111370.0,111360.0,0.08969012]
[1760536364206,0.17958866,111370.0,111360.0,0.26928782]
[1760536364426,0.17958157,111370.0,111360.0,0.26987374]
[1760536364647,0.17958866,111380.0,111360.0,0.26987374]
[1760536364880,0.17956754,111380.0,111360.0,0.26987374]
[1760536365104,0.52850987,111400.0,111370.0,0.18001432]
[1760536365322,0.52850987,111400.0,111380.0,0.26925557]
[1760536365323,0.17954933,111390.0,111380.0,0.26925557]
[1760536365535,0.52850987,111400.0,111380.0,0.26925557]
[1760536365965,0.17951709,111410.0,111390.0,0.17954933]
[1760536366181,0.17951709,111410.0,111390.0,0.26923945]
[1760536366402,0.17951709,111410.0,111390.0,0.08969012]
[1760536366642,0.17953321,111400.0,111390.0,0.21006385]
[1760536366855,0.17951709,111410.0,111390.0,0.26923945]
[1760536367076,0.17953321,111400.0,111390.0,0.26923945]
[1760536367315,0.1796672,111410.0,111400.0,0.17953321]
[1760536367575,0.00015011,111410.0,111400.0,0.38782333]
[1760536368259,0.00015011,111410.0,111400.0,0.26922333]
[1760536368480,0.00015011,111410.0,111400.0,0.38782333]
[1760536368951,0.00015011,111410.0,111400.0,0.26922333]
[1760536369169,0.00015011,111410.0,111400.0,0.38782333]
[1760536369599,0.00015011,111410.0,111400.0,0.26922333]
[1760536369821,0.00015011,111410.0,111400.0,0.38782333]
[1760536370039,0.00015011,111410.0,111400.0,0.38882333]
[1760536370246,0.00015011,111410.0,111400.0,0.78882333]
[1760536371133,0.00015011,111410.0,111400.0,0.67022333]
[1760536371585,0.00015011,111410.0,111400.0,0.78878333]
[1760536372024,0.00015011,111410.0,111400.0,0.67022333]
[1760536372448,0.00015011,111410.0,111400.0,0.78878333]
[1760536372879,0.00015011,111410.0,111400.0,0.67022333]
[1760536373323,0.00015011,111410.0,111400.0,0.27022333]
[1760536373758,0.00015011,111410.0,111400.0,0.67022333]
[1760536373973,0.00015011,111410.0,111400.0,0.78878333]
[1760536374441,0.00015011,111410.0,111400.0,0.67022333]
[1760536375069,0.00015011,111410.0,111400.0,0.78878333]
[1760536375542,0.00015011,111410.0,111400.0,0.67022333]
[1760536375963,0.00015011,111410.0,111400.0,0.78878333]
[1760536376175,0.00015011,111410.0,111400.0,0.67022333]
[1760536376396,0.00015011,111410.0,111400.0,1.04640561]
[1760536376634,0.00447602,111440.0,111430.0,0.17948487]
[1760536376854,0.00497675,111440.0,111430.0,0.38773499]
[1760536377066,0.00497675,111440.0,111430.0,0.08969012]
[1760536377272,0.18444552,111440.0,111430.0,0.20821012]
[1760536377513,0.00497675,111440.0,111430.0,0.38769499]
[1760536377725,0.00497675,111440.0,111430.0,0.26917499]
[1760536377934,0.00497675,111440.0,111430.0,0.42387727]
[1760536378362,0.00497675,111440.0,111430.0,0.30535727]
[1760536378993,0.00497675,111440.0,111430.0,0.42387727]
[1760536379891,0.00497675,111440.0,111430.0,0.42487727]
[1760536380106,0.00497675,111440.0,111430.0,0.30635727]
[1760536380571,0.00497675,111440.0,111430.0,0.42487727]
[1760536380803,0.00497675,111440.0,111430.0,0.82487727]
[1760536381273,0.00497675,111440.0,111430.0,1.04635727]
[1760536381514,1e-08,111440.0,111430.0,1.16487727]
[1760536381754,1e-08,111440.0,111430.0,1.04635727]
[1760536381979,1e-08,111440.0,111430.0,1.16487727]
[1760536382235,1e-08,111440.0,111430.0,1.04635727]
[1760536382688,1e-08,111440.0,111430.0,1.16383727]
[1760536383140,1e-08,111440.0,111430.0,1.04735727]
[1760536383844,1e-08,111440.0,111430.0,1.16583727]
[1760536385219,0.00436949,111460.0,111430.0,1.04735727]
[1760536385430,0.00451965,111460.0,111450.0,0.64532506]
[1760536385641,0.0781342,111470.0,111460.0,0.21561884]
[1760536385854,0.0781342,111470.0,111460.0,0.42378896]
[1760536386078,0.0063821,111470.0,111460.0,0.70530896]
[1760536386293,0.0063821,111470.0,111460.0,0.78756668]
[1760536386506,0.0063821,111470.0,111460.0,0.66912668]
[1760536386717,0.0063821,111470.0,111460.0,0.70530896]
[1760536387380,0.0063821,111470.0,111460.0,1.16374896]
[1760536387807,1e-08,111470.0,111460.0,1.04530896]
[1760536388014,1e-08,111470.0,111460.0,1.16374896]
[1760536388431,1e-08,111480.0,111470.0,0.55560275]
[1760536388645,1e-08,111480.0,111470.0,0.64529287]
[1760536389466,1e-08,111480.0,111470.0,0.76373287]
[1760536389580,1e-08,111480.0,111470.0,0.64529287]
[1760536389782,1e-08,111480.0,111470.0,0.76373287]
[1760536390005,1e-08,111480.0,111470.0,0.38851059]
[1760536390201,1e-08,111480.0,111470.0,0.26911059]
[1760536390631,1e-08,111480.0,111470.0,0.38851059]
[1760536390876,1e-08,111480.0,111470.0,0.78851059]
[1760536391500,1e-08,111480.0,111470.0,0.67011059]
[1760536391837,0.00234037,111480.0,111470.0,0.67011059]
[1760536392621,0.00234037,111480.0,111470.0,0.49069012]
[1760536392838,0.00234037,111480.0,111470.0,0.38851059]
[1760536393046,0.18174474,111480.0,111470.0,0.38851059]
[1760536393275,0.18174474,111480.0,111470.0,0.38751059]
[1760536393494,0.00234037,111480.0,111470.0,0.26911059]
[1760536393734,0.00234037,111480.0,111470.0,0.27011059]
[1760536393956,0.18174474,111480.0,111470.0,0.38851059]
[1760536394442,0.18174474,111480.0,111470.0,0.27011059]
[1760536394892,0.17940437,111480.0,111470.0,0.38747059]
[1760536395114,0.17940437,111480.0,111470.0,0.26911059]
[1760536395552,0.17940437,111480.0,111470.0,0.38747059]
[1760536396018,0.12715874,111490.0,111470.0,0.38747059]
[1760536396246,0.46715874,111490.0,111480.0,0.09174952]
[1760536396466,0.46715874,111490.0,111480.0,0.09264893]
[1760536396687,0.34,111490.0,111480.0,0.3904133]
[1760536396907,5.19179277,111500.0,111490.0,0.17938828]
[1760536396908,5.01241994,111500.0,111490.0,0.17938828]
[1760536397132,5.01257004,111500.0,111490.0,0.2690784]
[1760536397591,5.19194223,111500.0,111490.0,0.3874384]
[1760536397816,5.01257004,111500.0,111490.0,0.7874384]
[1760536398023,5.01257004,111500.0,111490.0,0.6690784]
[1760536398248,5.01257004,111500.0,111490.0,0.7874384]
[1760536399583,5.01257004,111500.0,111490.0,0.7883984]
[1760536399797,5.01257004,111500.0,111490.0,0.6700784]
[1760536400037,5.01257004,111500.0,111490.0,0.7883984]
[1760536400925,5.01257004,111500.0,111490.0,0.3883984]
[1760536401587,5.01257004,111500.0,111490.0,0.7883984]
[1760536402241,5.01257004,111500.0,111490.0,0.6700784]
[1760536402693,4.53695425,111500.0,111490.0,0.7883984]
[1760536402916,4.34455558,111500.0,111490.0,0.6700784]
[1760536403597,4.34455558,111500.0,111490.0,0.7883984]
[1760536404041,4.52392777,111500.0,111490.0,0.49069012]
[1760536404271,4.28517166,111500.0,111490.0,0.08969012]
[1760536404489,4.62517166,111500.0,111490.0,0.09069012]
[1760536404704,4.62517166,111500.0,111490.0,0.20797012]
[1760536404949,4.62517166,111500.0,111490.0,0.08969012]
[1760536405146,4.62517166,111500.0,111490.0,0.20997012]
[1760536405346,4.62517166,111500.0,111490.0,0.08969012]
[1760536405552,4.62517166,111500.0,111490.0,0.20797012]
[1760536405761,4.62517166,111500.0,111490.0,0.08969012]
[1760536405990,4.62517166,111500.0,111490.0,0.20819889]
[1760536406206,4.62517166,111500.0,111490.0,0.08969012]
[1760536406808,4.44579947,111500.0,111490.0,0.38846739]
[1760536407011,4.44579947,111500.0,111490.0,0.2690784]
[1760536407470,4.62517166,111500.0,111490.0,0.08969012]
[1760536407673,4.44579947,111500.0,111490.0,0.3873584]
[1760536407877,4.62517166,111500.0,111490.0,0.08969012]
[1760536408120,4.62517166,111500.0,111490.0,0.0912215]
[1760536408251,4.62517166,111500.0,111490.0,0.2095015]
[1760536408446,4.62517166,111500.0,111490.0,0.08969012]
[1760536408736,4.44579947,111500.0,111490.0,0.38903315]
[1760536408927,4.62517166,111500.0,111490.0,0.08969012]
[1760536409080,4.62517166,111500.0,111490.0,0.3873584]
[1760536409490,4.44579947,111500.0,111490.0,0.3873584]
[1760536409924,4.44579947,111500.0,111490.0,0.2690784]
[1760536410127,4.44579947,111500.0,111490.0,0.3873184]
[1760536410331,4.44579947,111500.0,111490.0,0.2690784]
[1760536410537,4.44579947,111500.0,111490.0,0.3873184]
[1760536410733,4.44579947,111500.0,111490.0,0.08969012]
[1760536410734,4.62517166,111500.0,111490.0,0.08969012]
[1760536411149,4.62517166,111500.0,111490.0,0.20893012]
[1760536411601,4.62517166,111500.0,111490.0,0.09069012]
[1760536411963,4.62517166,111500.0,111490.0,0.20793012]
[1760536412131,4.62517166,111500.0,111490.0,0.08969012]
[1760536412330,4.44579947,111500.0,111490.0,0.2690784]
[1760536412556,4.10579947,111500.0,111490.0,0.2690784]
[1760536412768,4.10579947,111500.0,111490.0,0.3873184]
[1760536413715,4.10579947,111500.0,111490.0,0.2690784]
[1760536414140,4.10579947,111500.0,111490.0,0.2700784]
[1760536414364,4.10579947,111500.0,111490.0,0.3883184]
[1760536414570,4.28517166,111500.0,111490.0,0.2700784]
[1760536414807,4.10579947,111500.0,111490.0,0.2700784]
[1760536415483,4.10579947,111500.0,111490.0,0.2690784]
[1760536415706,4.10579947,111500.0,111490.0,0.7872784]
[1760536416256,4.28517166,111500.0,111490.0,0.48969012]
[1760536416484,4.62517166,111500.0,111490.0,0.20789012]
[1760536416707,4.62517166,111500.0,111490.0,0.08969012]
[1760536416923,4.62517166,111500.0,111490.0,0.20789012]
[1760536417146,4.62517166,111500.0,111490.0,0.08969012]
[1760536417372,4.62517166,111500.0,111490.0,0.20947317]
[1760536417597,4.62517166,111500.0,111490.0,0.08969012]
[1760536417806,4.66135394,111500.0,111490.0,0.08969012]
[1760536418014,4.66135394,111500.0,111490.0,0.20789012]
[1760536418226,4.62517166,111500.0,111490.0,0.08969012]
[1760536418441,4.62517166,111500.0,111490.0,0.09036672]
[1760536418659,4.62517166,111500.0,111490.0,0.20789012]
[1760536419100,4.62517166,111500.0,111490.0,0.08969012]
[1760536419328,4.62517166,111500.0,111490.0,0.38845188]
[1760536419551,4.44579947,111500.0,111490.0,0.2690784]
[1760536419769,4.44579947,111500.0,111490.0,0.3872784]
[1760536420014,4.44579947,111500.0,111490.0,0.2690784]
[1760536420458,3.90448328,111500.0,111490.0,0.3872784]
[1760536420675,3.90448328,111500.0,111490.0,0.2690784]
[1760536421140,3.90448328,111500.0,111490.0,0.3872784]
[1760536421398,3.90448328,111500.0,111490.0,0.2700784]
[1760536421635,3.90448328,111500.0,111490.0,0.3882784]
[1760536421856,3.90448328,111500.0,111490.0,0.6700784]
[1760536422352,3.90448328,111500.0,111490.0,0.7872384]
[1760536423293,3.90448328,111500.0,111490.0,0.6690784]
[1760536423515,3.90448328,111500.0,111490.0,0.7872384]
[1760536423746,3.90448328,111500.0,111490.0,0.7882384]
[1760536423980,3.90448328,111500.0,111490.0,0.7872384]
[1760536424232,3.90448328,111500.0,111490.0,0.7882384]
[1760536424461,4.42385547,111500.0,111490.0,0.60885012]
[1760536424692,4.42385547,111500.0,111490.0,0.3882384]
[1760536424933,4.42385547,111500.0,111490.0,0.20885012]
[1760536425193,4.46003775,111500.0,111490.0,0.001]
[1760536425420,0.17941089,111480.0,111460.0,0.18963564]
[1760536425653,0.51941089,111480.0,111470.0,0.20365012]
[1760536425879,0.51941089,111480.0,111470.0,0.20785012]
[1760536426819,0.51941089,111480.0,111470.0,0.38727059]
[1760536426820,0.34,111480.0,111470.0,0.38727059]
[1760536427043,0.51940437,111480.0,111470.0,0.38723059]
[1760536427498,0.51940437,111480.0,111470.0,0.27011059]
[1760536427731,0.51940437,111480.0,111470.0,0.20881012]
[1760536428197,0.51940437,111480.0,111470.0,0.20781012]
[1760536428425,0.51940437,111480.0,111470.0,0.08969012]
[1760536428657,0.51940437,111480.0,111470.0,0.20836898]
[1760536428885,0.51940437,111480.0,111470.0,0.20781012]
[1760536429371,0.34,111480.0,111470.0,0.38723059]
[1760536429601,0.34,111480.0,111470.0,0.26911059]
[1760536429828,3.90331352,111500.0,111490.0,0.17938828]
[1760536430066,3.90331352,111500.0,111490.0,0.3871984]
[1760536430331,4.24331352,111500.0,111490.0,0.3871984]
[1760536430564,4.42268571,111500.0,111490.0,0.3871984]
[1760536430793,4.24331352,111500.0,111490.0,0.2690784]
[1760536431030,4.42268571,111500.0,111490.0,0.20781012]
[1760536431264,4.24331352,111500.0,111490.0,0.3871984]
[1760536431499,4.42385546,111500.0,111490.0,0.3871984]
[1760536431745,4.42385546,111500.0,111490.0,0.2690784]
[1760536432212,4.42385546,111500.0,111490.0,0.20781012]
[1760536432674,4.42385546,111500.0,111490.0,0.3871984]
[1760536432957,4.24448327,111500.0,111490.0,0.3871984]
[1760536433179,4.24448327,111500.0,111490.0,0.2690784]
[1760536433401,4.24448327,111500.0,111490.0,0.3871984]
[1760536433628,3.90448327,111500.0,111490.0,0.3871984]
[1760536433855,3.90448327,111500.0,111490.0,0.2690784]
[1760536434330,4.24448327,111500.0,111490.0,0.3871584]
[1760536434571,4.42385546,111500.0,111490.0,0.3871584]
[1760536434793,4.42385546,111500.0,111490.0,0.7871584]
[1760536435027,4.24448327,111500.0,111490.0,0.7871584]
[1760536435695,3.90448327,111500.0,111490.0,0.7871584]
[1760536435904,3.90448327,111500.0,111490.0,0.6690784]
[1760536436123,3.90448327,111500.0,111490.0,0.7871584]
[1760536436776,3.90448327,111500.0,111490.0,0.7881584]
[1760536437661,3.90448327,111500.0,111490.0,0.2700784]
[1760536437890,3.90448327,111500.0,111490.0,0.3881584]
[1760536438096,3.90448327,111500.0,111490.0,0.3871584]
[1760536438311,3.90448327,111500.0,111490.0,0.6700784]
[1760536438518,3.90448327,111500.0,111490.0,0.7881584]
[1760536439248,3.90448327,111500.0,111490.0,0.6700784]
[1760536439489,3.90448327,111500.0,111490.0,0.6690784]
[1760536439718,3.90448327,111500.0,111490.0,0.7881184]
[1760536439949,3.90448327,111500.0,111490.0,0.6700784]
[1760536440173,3.90448327,111500.0,111490.0,0.7871184]
[1760536440402,3.90448327,111500.0,111490.0,0.6700784]
[1760536440630,3.90448327,111500.0,111490.0,0.7881184]
[1760536440866,3.90448327,111500.0,111490.0,0.6700784]
[1760536441085,3.90448327,111500.0,111490.0,0.6690784]
[1760536441308,3.90448327,111500.0,111490.0,0.7871184]
[1760536441527,3.90448327,111500.0,111490.0,0.6700784]
[1760536442201,3.90448327,111500.0,111490.0,0.7881184]
[1760536442662,3.90448327,111500.0,111490.0,0.7871184]
[1760536442880,3.90448327,111500.0,111490.0,0.7870784]
[1760536443105,3.90448327,111500.0,111490.0,0.6700784]
[1760536443317,3.90448327,111500.0,111490.0,0.7880784]
[1760536443742,3.75702727,111500.0,111490.0,1.64691091]
[1760536444173,3.75702727,111500.0,111490.0,1.76491091]
[1760536444662,3.75702727,111500.0,111490.0,1.51701091]
[1760536444905,2.94417506,111500.0,111490.0,6.58239319]
[1760536445135,2.8192447,111500.0,111490.0,6.94829319]
[1760536445366,2.79231413,111500.0,111490.0,6.94829319]
[1760536445651,2.79231413,111500.0,111490.0,1.88177319]
[1760536445877,2.79231413,111500.0,111490.0,1.0120784]
[1760536445878,2.76538356,111500.0,111490.0,1.0120784]
[1760536446095,2.76538356,111500.0,111490.0,1.1300784]
[1760536446307,2.76538356,111500.0,111490.0,1.0130784]
[1760536446489,2.76538356,111500.0,111490.0,1.0120784]
[1760536446732,2.76538356,111500.0,111490.0,1.74101091]
[1760536446953,2.76538356,111500.0,111490.0,1.74301091]
[1760536447377,2.76538356,111500.0,111490.0,1.86097091]
[1760536447590,2.76538356,111500.0,111490.0,1.74301091]
[1760536447820,2.76538356,111500.0,111490.0,1.85897091]
[1760536448041,2.34361953,111500.0,111490.0,6.85897091]
[1760536448280,2.34361953,111500.0,111490.0,6.77719319]
[1760536448499,2.34361953,111500.0,111490.0,1.77719319]
[1760536448714,2.34361953,111500.0,111490.0,1.1300384]
[1760536448932,2.34361953,111500.0,111490.0,0.6720784]
[1760536449155,2.34361953,111500.0,111490.0,0.49069012]
[1760536449379,2.52299172,111500.0,111490.0,0.09069012]
[1760536449612,2.34361953,111500.0,111490.0,0.3880384]
[1760536449854,2.68361953,111500.0,111490.0,0.6690784]
[1760536450067,2.86299172,111500.0,111490.0,0.48969012]
[1760536450273,2.86299172,111500.0,111490.0,0.60865012]
[1760536450478,2.68361953,111500.0,111490.0,0.60865012]
[1760536450696,2.48927343,111500.0,111490.0,0.6700784]
[1760536451366,2.14927343,111500.0,111490.0,1.51693091]
[1760536451588,2.14927343,111500.0,111490.0,1.39901091]
[1760536452307,2.14927343,111500.0,111490.0,0.6700784]
[1760536452520,2.14927343,111500.0,111490.0,0.6690784]
[1760536452932,2.14927343,111500.0,111490.0,0.6700784]
[1760536453602,2.14927343,111500.0,111490.0,0.6690784]
[1760536453849,2.14927343,111500.0,111490.0,1.51693091]
[1760536454545,2.14927343,111500.0,111490.0,1.39901091]
[1760536455040,2.14927343,111500.0,111490.0,1.51693091]
[1760536455264,2.14927343,111500.0,111490.0,1.51593091]
[1760536455738,2.14927343,111500.0,111490.0,1.51693091]
[1760536455969,2.14927343,111500.0,111490.0,0.7879984]
[1760536456426,2.14927343,111500.0,111490.0,1.51693091]
[1760536456640,2.14927343,111500.0,111490.0,1.39901091]
[1760536456860,2.14927343,111500.0,111490.0,0.6700784]
[1760536457338,2.14927343,111500.0,111490.0,0.7879584]
[1760536457557,2.14927343,111500.0,111490.0,1.39901091]
[1760536457773,2.14927343,111500.0,111490.0,1.51689091]
[1760536457989,2.14927343,111500.0,111490.0,1.39901091]
[1760536458202,2.14927343,111500.0,111490.0,0.6700784]
[1760536458860,2.14927343,111500.0,111490.0,0.7879584]
[1760536459289,2.14927343,111500.0,111490.0,0.6700784]
[1760536459510,2.14927343,111500.0,111490.0,0.7869584]
[1760536459751,2.14927343,111500.0,111490.0,1.51689091]
[1760536459969,1.73397813,111500.0,111490.0,1.85689091]
[1760536460187,1.41298334,111500.0,111490.0,1.77519319]
[1760536460400,1.41298334,111500.0,111490.0,1.89307319]
[1760536462122,1.41298334,111500.0,111490.0,1.89207319]
[1760536462357,1.41298334,111500.0,111490.0,1.16414068]
[1760536462578,1.41298334,111500.0,111490.0,1.77519319]
[1760536462801,0.6935316,111500.0,111490.0,6.49203319]
[1760536463028,0.57396636,111500.0,111490.0,6.49203319]
[1760536463257,0.54703974,111500.0,111490.0,6.77419319]
[1760536463535,0.52011312,111500.0,111490.0,6.82467319]
[1760536463793,0.46625988,111500.0,111490.0,6.94251319]
[1760536464286,0.46625988,111500.0,111490.0,1.94251319]
[1760536464536,0.46625988,111500.0,111490.0,1.82467319]
[1760536465043,0.46625988,111500.0,111490.0,1.94251319]
[1760536465293,0.46625988,111500.0,111490.0,6.82467319]
[1760536465568,0.01443255,111510.0,111500.0,6.28448698]
[1760536465841,0.01443255,111510.0,111500.0,6.3741771]
[1760536466096,0.01443255,111510.0,111500.0,6.4919771]
[1760536466787,0.01443255,111510.0,111500.0,6.3741771]
[1760536467012,0.01443255,111510.0,111500.0,6.4919771]
[1760536467236,0.01443255,111510.0,111500.0,6.4939771]
[1760536467728,0.01443255,111510.0,111500.0,6.3791771]
[1760536467933,0.01443255,111510.0,111500.0,6.4969771]
[1760536468537,0.01443255,111510.0,111500.0,6.3791771]
[1760536468768,0.01443255,111510.0,111500.0,6.4969771]
[1760536469198,0.01443255,111510.0,111500.0,6.3791771]
[1760536469418,0.01443255,111510.0,111500.0,6.4969371]
[1760536469666,0.01443255,111510.0,111500.0,5.76800459]
[1760536469907,0.01443255,111510.0,111500.0,6.4969371]
[1760536470893,0.01443255,111510.0,111500.0,1.34299482]
[1760536471118,0.01443255,111510.0,111500.0,1.46075482]
[1760536471382,0.01501732,111510.0,111500.0,1.34299482]
[1760536472078,0.01501732,111510.0,111500.0,1.46075482]
[1760536472281,0.01501732,111510.0,111500.0,6.4969371]
[1760536472501,0.04144516,111520.0,111510.0,0.17935611]